{"text_format":"1","workbook":"xlsx","n_sheets":5,"sheets":["住所変更届用ファイル作成","（記入例）住所変更届用ファイル作成","健保資格喪失届用ファイル作成","（記入例）健保資格喪失届用ファイル作成","プルダウン"],"not_rendered":{"charts":0,"images":8,"macros":1,"external_links":0,"defined_names":6,"comments":0,"pivot_tables":0},"unopened":[],"bounds":{"document_bytes":16777216,"sheet_cells":100000,"rows_first":2000,"rows_last":500,"rows_between":2000,"halvings":0,"cell_chars":16384,"cell_head_chars":4096},"cells_cut":0,"cells_raw":0,"read":"whole","date_system":"1900"}

{"sheet":"住所変更届用ファイル作成","index":0,"n_rows":20,"n_cols":24,"rows_kept":20,"cut":false,"hidden":false,"merged":[[3,1,3,2]]}
[null,"住所変更届用ファイル作成　ver1.21"]
[]
[null,"①健保事業所コード",null,null,null,null,null,null,null,null,null,"【使い方】"]
[null,null,null,null,null,null,null,null,null,null,null,"　①「健保事業所コード」を入力してください。"]
[null,null,null,null,null,null,null,null,null,null,null,"　②「住所変更登録項目」を入力してください。"]
[null,null,null,null,null,null,null,null,null,null,null,"　③「住所変更届用ファイル作成」ボタンを押してください。"]
[null,null,null,null,null,null,null,null,null,null,null,"　＞＞＞作成された「txtファイル」を、セキュアエクスプレスにアップロードしてください。"]
[null,null,null,null,null,null,null,null,null,null,null,"【ご注意】"]
[null,null,null,null,null,null,null,null,null,null,null,"　住所区分が追加されました。１：居住地住所　２：住民票住所　１か２を半角で入力してください。"]
[null,null,null,null,null,null,null,null,null,null,null,"　住所１は行政区までの住所を入力してください。"]
[]
[]
[]
[]
[]
[]
[null,"　②住所変更登録項目（ * は必須項目です）"]
[null,"* ＩＤ番号","* 姓（漢字）","* 名（漢字）",null,null,null,null,null,null,null,"* 住所区分","* 郵便番号","* 住所１（都道府県・市区町村）","桁数","住所２（番地）","桁数","住所３（マンション名など）","桁数","住所４","桁数","電話番号","FAX番号","エラー情報"]
[null,"半角","全角","全角",null,null,null,null,null,null,null,"半角","半角","全角",null,"全角",null,"全角",null,"全角",null,"半角","半角"]
[null,"7",5,5,null,null,null,null,null,null,null,1,7,16,null,16,null,16,null,16,null,12,12]

{"sheet":"（記入例）住所変更届用ファイル作成","index":1,"n_rows":101,"n_cols":24,"rows_kept":101,"cut":false,"hidden":false,"merged":[]}
[null,"住所変更届用ファイル作成　ver1.21"]
[]
[null,"①健保事業所コード",null,null,null,null,null,null,null,null,null,"【使い方】"]
[null,"1001",null,null,null,null,null,null,null,null,null,"　①「健保事業所コード」を入力してください。"]
[null,null,null,null,null,null,null,null,null,null,null,"　②「住所変更登録項目」を入力してください。"]
[null,null,null,null,null,null,null,null,null,null,null,"　③「住所変更届用ファイル作成」ボタンを押してください。"]
[null,null,null,null,null,null,null,null,null,null,null,"　＞＞＞作成された「txtファイル」を、セキュアエクスプレスにアップロードしてください。"]
[null,null,null,null,null,null,null,null,null,null,null,"【ご注意】"]
[null,null,null,null,null,null,null,null,null,null,null,"　住所区分が追加されました。１：居住地住所　２：住民票住所　１か２を半角で入力してください。"]
[null,null,null,null,null,null,null,null,null,null,null,"　住所１は行政区までの住所を入力してください。"]
[]
[]
[]
[]
[]
[]
[null,"　住所変更登録項目（ * は必須項目です）"]
[null,"* ＩＤ番号","* 姓（漢字）","* 名（漢字）",null,null,null,null,null,null,null,"* 住所区分","* 郵便番号","* 住所１（都道府県・市区町村）","桁数","住所２（番地）","桁数","住所３（マンション名など）","桁数","住所４","桁数","電話番号","FAX番号","エラー情報"]
[null,"半角","全角","全角",null,null,null,null,null,null,null,"半角","半角","全角",null,"全角",null,"全角",null,"全角",null,"半角","半角"]
[null,"7",5,5,null,null,null,null,null,null,null,1,7,16,null,16,null,16,null,16,null,12,12]
[null,"1100010","山田","太郎",null,null,null,null,null,null,null,1,5640062,"大阪府吹田市",{"$f":"IF(ISBLANK(N21),\"\",LEN(N21))","v":6},"垂水町１丁目２９－４",{"$f":"IF(ISBLANK(P21),\"\",LEN(P21))","v":10},"ウエストコート垂水町２０９",{"$f":"IF(ISBLANK(R21),\"\",LEN(R21))","v":13},null,{"$f":"IF(ISBLANK(T21),\"\",LEN(T21))","v":""},"090-12345678"]
[null,"1100020","大阪","花子",null,null,null,null,null,null,null,1,5500023,"大阪府西区",{"$f":"IF(ISBLANK(N22),\"\",LEN(N22))","v":5},"千代崎３丁目南２番３７号",12,null,"",null,"","06-6584-5759","06-6584-6497"]
[null,"1100030","京都","次郎",null,null,null,null,null,null,null,2,1080023,"東京都港区",5,"芝浦４丁目１３番２３号",11,null,"",null,"","03-5440-4179","03-5730-3305"]
[null,"1100040","兵庫","三郎",null,null,null,null,null,null,null,2,8113104,"福岡県古賀市",6,"花咲鶴舞ヶ丘東西１丁目",11,"１９番２２号",6,"花鶴丘団地１９棟１１１号",12,"092-942-2345"]
[null,"1100050","滋賀","太郎",null,null,null,null,null,null,null,1,5640062,"大阪府吹田市",6,"垂水町１丁目２９－４",10,"ウエストコート垂水町２０９",13,null,"","090-12345678"]
[null,"1100060","和歌山","次郎",null,null,null,null,null,null,null,1,1080023,"東京都港区",5,"芝浦４丁目１３番２３号",11,null,"",null,"","03-5440-4179","03-5730-3305"]
[null,"1100060","和歌山","次郎",null,null,null,null,null,null,null,2,5500023,"大阪府西区",5,"千代崎３丁目南２番３７号",12,null,"",null,"","090-12345678"]
[null,"1100080","奈良","花子",null,null,null,null,null,null,null,1,8113104,"福岡県古賀市",6,"花咲鶴舞ヶ丘東西１丁目",11,"１９番２２号",6,"花鶴丘団地１９棟１１１号",12,"092-942-2345"]
[null,"1100090","鳥取","優子",null,null,null,null,null,null,null,1,1080023,"東京都港区",5,"芝浦４丁目１３番２３号",11,null,"",null,"","03-5440-4179","03-5730-3305"]
[null,"1100100","島根","舞子",null,null,null,null,null,null,null,2,8113104,"福岡県古賀市",6,"花咲鶴舞ヶ丘東西１丁目",11,"１９番２２号",6,"花鶴丘団地１９棟１１１号",12,"092-942-2345"]
[null,null,null,null,null,null,null,null,null,null,null,null,null,null,"",null,"",null,"",null,""]
[null,null,null,null,null,null,null,null,null,null,null,null,null,null,"",null,"",null,"",null,""]
[null,null,null,null,null,null,null,null,null,null,null,null,null,null,"",null,"",null,"",null,""]
[null,null,null,null,null,null,null,null,null,null,null,null,null,null,"",null,"",null,"",null,""]
[null,null,null,null,null,null,null,null,null,null,null,null,null,null,"",null,"",null,"",null,""]
[null,null,null,null,null,null,null,null,null,null,null,null,null,null,"",null,"",null,"",null,""]
[null,null,null,null,null,null,null,null,null,null,null,null,null,null,"",null,"",null,"",null,""]
[null,null,null,null,null,null,null,null,null,null,null,null,null,null,"",null,"",null,"",null,""]
[null,null,null,null,null,null,null,null,null,null,null,null,null,null,"",null,"",null,"",null,""]
[null,null,null,null,null,null,null,null,null,null,null,null,null,null,"",null,"",null,"",null,""]
[null,null,null,null,null,null,null,null,null,null,null,null,null,null,"",null,"",null,"",null,""]
[null,null,null,null,null,null,null,null,null,null,null,null,null,null,"",null,"",null,"",null,""]
[null,null,null,null,null,null,null,null,null,null,null,null,null,null,"",null,"",null,"",null,""]
[null,null,null,null,null,null,null,null,null,null,null,null,null,null,"",null,"",null,"",null,""]
[null,null,null,null,null,null,null,null,null,null,null,null,null,null,"",null,"",null,"",null,""]
[null,null,null,null,null,null,null,null,null,null,null,null,null,null,"",null,"",null,"",null,""]
[null,null,null,null,null,null,null,null,null,null,null,null,null,null,"",null,"",null,"",null,""]
[null,null,null,null,null,null,null,null,null,null,null,null,null,null,"",null,"",null,"",null,""]
[null,null,null,null,null,null,null,null,null,null,null,null,null,null,"",null,"",null,"",null,""]
[null,null,null,null,null,null,null,null,null,null,null,null,null,null,"",null,"",null,"",null,""]
[null,null,null,null,null,null,null,null,null,null,null,null,null,null,"",null,"",null,"",null,""]
[null,null,null,null,null,null,null,null,null,null,null,null,null,null,"",null,"",null,"",null,""]
[null,null,null,null,null,null,null,null,null,null,null,null,null,null,"",null,"",null,{"$f":"IF(ISBLANK(R53),\"\",LEN(R53))","v":""},null,{"$f":"IF(ISBLANK(T53),\"\",LEN(T53))","v":""}]
[null,null,null,null,null,null,null,null,null,null,null,null,null,null,"",null,"",null,"",null,""]
[null,null,null,null,null,null,null,null,null,null,null,null,null,null,"",null,"",null,"",null,""]
[null,null,null,null,null,null,null,null,null,null,null,null,null,null,"",null,"",null,"",null,""]
[null,null,null,null,null,null,null,null,null,null,null,null,null,null,"",null,"",null,"",null,""]
[null,null,null,null,null,null,null,null,null,null,null,null,null,null,"",null,"",null,"",null,""]
[null,null,null,null,null,null,null,null,null,null,null,null,null,null,"",null,"",null,"",null,""]
[null,null,null,null,null,null,null,null,null,null,null,null,null,null,"",null,"",null,"",null,""]
[null,null,null,null,null,null,null,null,null,null,null,null,null,null,"",null,"",null,"",null,""]
[null,null,null,null,null,null,null,null,null,null,null,null,null,null,"",null,"",null,"",null,""]
[null,null,null,null,null,null,null,null,null,null,null,null,null,null,"",null,"",null,"",null,""]
[null,null,null,null,null,null,null,null,null,null,null,null,null,null,"",null,"",null,"",null,""]
[null,null,null,null,null,null,null,null,null,null,null,null,null,null,"",null,"",null,"",null,""]
[null,null,null,null,null,null,null,null,null,null,null,null,null,null,"",null,"",null,"",null,""]
[null,null,null,null,null,null,null,null,null,null,null,null,null,null,"",null,"",null,"",null,""]
[null,null,null,null,null,null,null,null,null,null,null,null,null,null,"",null,"",null,"",null,""]
[null,null,null,null,null,null,null,null,null,null,null,null,null,null,"",null,"",null,"",null,""]
[null,null,null,null,null,null,null,null,null,null,null,null,null,null,"",null,"",null,"",null,""]
[null,null,null,null,null,null,null,null,null,null,null,null,null,null,"",null,"",null,"",null,""]
[null,null,null,null,null,null,null,null,null,null,null,null,null,null,"",null,"",null,"",null,""]
[null,null,null,null,null,null,null,null,null,null,null,null,null,null,"",null,"",null,"",null,""]
[null,null,null,null,null,null,null,null,null,null,null,null,null,null,"",null,"",null,"",null,""]
[null,null,null,null,null,null,null,null,null,null,null,null,null,null,"",null,"",null,"",null,""]
[null,null,null,null,null,null,null,null,null,null,null,null,null,null,"",null,"",null,"",null,""]
[null,null,null,null,null,null,null,null,null,null,null,null,null,null,"",null,"",null,"",null,""]
[null,null,null,null,null,null,null,null,null,null,null,null,null,null,"",null,"",null,"",null,""]
[null,null,null,null,null,null,null,null,null,null,null,null,null,null,"",null,"",null,"",null,""]
[null,null,null,null,null,null,null,null,null,null,null,null,null,null,"",null,"",null,"",null,""]
[null,null,null,null,null,null,null,null,null,null,null,null,null,null,"",null,"",null,"",null,""]
[null,null,null,null,null,null,null,null,null,null,null,null,null,null,"",null,"",null,"",null,""]
[null,null,null,null,null,null,null,null,null,null,null,null,null,null,"",null,"",null,"",null,""]
[null,null,null,null,null,null,null,null,null,null,null,null,null,null,"",null,"",null,"",null,""]
[null,null,null,null,null,null,null,null,null,null,null,null,null,null,"",null,"",null,{"$f":"IF(ISBLANK(R85),\"\",LEN(R85))","v":""},null,{"$f":"IF(ISBLANK(T85),\"\",LEN(T85))","v":""}]
[null,null,null,null,null,null,null,null,null,null,null,null,null,null,{"$f":"IF(ISBLANK(N86),\"\",LEN(N86))","v":""},null,"",null,"",null,""]
[null,null,null,null,null,null,null,null,null,null,null,null,null,null,"",null,"",null,"",null,""]
[null,null,null,null,null,null,null,null,null,null,null,null,null,null,"",null,"",null,"",null,""]
[null,null,null,null,null,null,null,null,null,null,null,null,null,null,"",null,"",null,"",null,""]
[null,null,null,null,null,null,null,null,null,null,null,null,null,null,"",null,"",null,"",null,""]
[null,null,null,null,null,null,null,null,null,null,null,null,null,null,"",null,"",null,"",null,""]
[null,null,null,null,null,null,null,null,null,null,null,null,null,null,"",null,"",null,"",null,""]
[null,null,null,null,null,null,null,null,null,null,null,null,null,null,"",null,"",null,"",null,""]
[null,null,null,null,null,null,null,null,null,null,null,null,null,null,"",null,"",null,"",null,""]
[null,null,null,null,null,null,null,null,null,null,null,null,null,null,"",null,"",null,"",null,""]
[null,null,null,null,null,null,null,null,null,null,null,null,null,null,"",null,"",null,"",null,""]
[null,null,null,null,null,null,null,null,null,null,null,null,null,null,"",null,"",null,"",null,""]
[null,null,null,null,null,null,null,null,null,null,null,null,null,null,"",null,"",null,"",null,""]
[null,null,null,null,null,null,null,null,null,null,null,null,null,null,"",null,"",null,"",null,""]
[null,null,null,null,null,null,null,null,null,null,null,null,null,null,"",null,"",null,"",null,""]
[null,null,null,null,null,null,null,null,null,null,null,null,null,null,"",null,"",null,"",null,""]

{"sheet":"健保資格喪失届用ファイル作成","index":2,"n_rows":20,"n_cols":5,"rows_kept":20,"cut":false,"hidden":true,"merged":[[3,1,3,2]]}
[null,"健保資格喪失届用ファイル作成　ver1.11"]
[]
[null,"①健保事業所コード",null,"【使い方】"]
[null,"",null,"　①「健保事業所コード」を入力してください。"]
[null,null,null,"　②「資格喪失登録項目」を入力してください。"]
[null,null,null,"　　※「資格喪失日」には「退職日（失効日）」の翌日を入力してください。"]
[null,null,null,"　③「健保資格喪失届用ファイル作成」ボタンを押してください。"]
[null,null,null,"　＞＞＞作成されたtxtファイルを、健保事業所連絡ページにアップロードしてください。"]
[]
[]
[null,null,null,"注意：ここで入力した資格喪失日で健保資格が喪失されます。対象ＩＤと資格喪失日が正しいか再度確認してください！"]
[]
[]
[]
[]
[]
[null,"②資格喪失登録項目（ * は必須項目です）"]
[null,"* ＩＤ番号","* 資格喪失日","備考","エラー情報"]
[null,"半角","日付","全角"]
[null,"7","YYYY/MM/DD"]

{"sheet":"（記入例）健保資格喪失届用ファイル作成","index":3,"n_rows":30,"n_cols":5,"rows_kept":30,"cut":false,"hidden":true,"merged":[]}
[null,"健保資格喪失届用ファイル作成　ver1.11"]
[]
[null,"①健保事業所コード",null,"【使い方】"]
[null,"1707",null,"　①「健保事業所コード」を入力してください。"]
[null,null,null,"　②「資格喪失登録項目」を入力してください。"]
[null,null,null,"　　※「資格喪失日」には「退職日（失効日）」の翌日を入力してください。"]
[null,null,null,"　③「健保資格喪失届用ファイル作成」ボタンを押してください。"]
[null,null,null,"　＞＞＞作成されたtxtファイルを、健保事業所連絡ページにアップロードしてください。"]
[]
[]
[null,null,null,"注意：ここで入力した資格喪失日で健保資格が喪失されます。対象ＩＤと資格喪失日が正しいか再度確認してください！"]
[]
[]
[]
[]
[]
[null,"②資格喪失登録項目（ * は必須項目です）"]
[null,"* ＩＤ番号","* 資格喪失日","備考","エラー情報"]
[null,"半角","日付","全角"]
[null,"7","YYYY/MM/DD"]
[null,"1100010","2010/12/01"]
[null,"1100020","2010/12/01"]
[null,"1100030","2010/12/01"]
[null,"1100040","2010/12/01"]
[null,"1100050","2010/12/01"]
[null,"1100060","2010/12/01"]
[null,"1100070","2010/12/01"]
[null,"1100080","2010/12/01"]
[null,"1100090","2010/12/01"]
[null,"1100100","2010/12/01"]

{"sheet":"プルダウン","index":4,"n_rows":6,"n_cols":7,"rows_kept":6,"cut":false,"hidden":true,"merged":[]}
["雇用種別",null,null,"大阪ガス健康保険組合への加入",null,null,"性別"]
["社員・嘱託",1,null,"今回加入する",1,null,"男"]
["社員・嘱託以外（派遣・アルバイトなど）",2,null,"加入しない",2,null,"女"]
[]
[]
["ver1.00　2011/1/27"]